[Event "January 9 Late 2024"]
[Site "https://www.chess.com"]
[Date "2024.01.09"]
[Round "4"]
[White "Smirnov, Anton"]
[Black "Kraiouchkine, Nikita"]
[Result "1/2-1/2"]
[Board "43"]
[TimeControl "180+1"]
[WhiteFideId "3208923"]
[BlackFideId "2607140"]
[WhiteElo "2929"]
[BlackElo "2617"]
[WhiteTeam "AUS"]
[BlackTeam "CAN"]
[WhiteClock "0:01:08"]
[BlackClock "0:00:39"]

1. e4 {[%clk 0:02:57]}  e5 {[%clk 0:02:57]} 2. Nf3 {[%clk 0:02:54]}  Nc6 {[%clk 0:02:57]} 3. Bb5 {[%clk 0:02:54]}  f5 {[%clk 0:02:57]} 4. d3 {[%clk 0:02:53]}  fxe4 {[%clk 0:02:56]} 5. dxe4 {[%clk 0:02:54]}  Nf6 {[%clk 0:02:56]} 6. O-O {[%clk 0:02:53]}  Bc5 {[%clk 0:02:56]} 7. Qe2 {[%clk 0:02:54]}  Nd4 {[%clk 0:02:55]} 8. Nxd4 {[%clk 0:02:49]}  Bxd4 {[%clk 0:02:55]} 9. c3 {[%clk 0:02:43]}  Bb6 {[%clk 0:02:54]} 10. Bc4 {[%clk 0:02:43]}  d6 {[%clk 0:02:50]} 11. a4 {[%clk 0:02:42]}  a6 {[%clk 0:02:49]} 12. a5 {[%clk 0:02:41]}  Ba7 {[%clk 0:02:49]} 13. Kh1 {[%clk 0:02:27]}  Qe7 {[%clk 0:02:45]} 14. Bg5 {[%clk 0:02:07]}  Be6 {[%clk 0:02:41]} 15. Nd2 {[%clk 0:02:03]}  O-O {[%clk 0:02:39]} 16. f4 {[%clk 0:01:58]}  exf4 {[%clk 0:02:35]} 17. Rxf4 {[%clk 0:01:57]}  h6 {[%clk 0:02:34]} 18. Bxf6 {[%clk 0:01:51]}  Rxf6 {[%clk 0:02:34]} 19. Rxf6 {[%clk 0:01:52]}  Qxf6 {[%clk 0:02:33]} 20. Rf1 {[%clk 0:01:52]}  Qe7 {[%clk 0:02:28]} 21. h3 {[%clk 0:01:48]}  Rf8 {[%clk 0:02:21]} 22. Rxf8+ {[%clk 0:01:45]}  Kxf8 {[%clk 0:02:21]} 23. Qf3+ {[%clk 0:01:45]}  Ke8 {[%clk 0:02:13]} 24. e5 {[%clk 0:01:42]}  Bxc4 {[%clk 0:01:57]} 25. Nxc4 {[%clk 0:01:41]}  Qh4 {[%clk 0:01:52]} 26. Qe2 {[%clk 0:01:13]}  d5 {[%clk 0:01:34]} 27. Nd2 {[%clk 0:01:13]}  Qf2 {[%clk 0:01:25]} 28. Qh5+ {[%clk 0:01:13]}  Ke7 {[%clk 0:00:57]} 29. Nf3 {[%clk 0:01:12]}  Qxb2 {[%clk 0:00:57]} 30. Qg6 {[%clk 0:01:08]}  Qc1+ {[%clk 0:00:53]} 31. Kh2 {[%clk 0:01:08]}  Qf4+ {[%clk 0:00:51]} 32. Kh1 {[%clk 0:01:07]}  Qc1+ {[%clk 0:00:50]} 33. Kh2 {[%clk 0:01:07]}  Qf4+ {[%clk 0:00:50]} 34. Kh1 {[%clk 0:01:08]}  Qc1+ {[%clk 0:00:39]} 1/2-1/2

[Event "January 9 Late 2024"]
[Site "https://www.chess.com"]
[Date "2024.01.09"]
[Round "4"]
[White "Zhu, Jiner"]
[Black "Sargsyan, Shant"]
[Result "0-1"]
[Board "44"]
[TimeControl "180+1"]
[WhiteFideId "8608059"]
[BlackFideId "13306766"]
[WhiteElo "2613"]
[BlackElo "2921"]
[WhiteTeam "CHN"]
[BlackTeam "ARM"]
[WhiteClock "0:01:31"]
[BlackClock "0:02:00"]

1. e4 {[%clk 0:03:00]}  g6 {[%clk 0:03:00]} 2. d4 {[%clk 0:03:00]}  Nf6 {[%clk 0:03:01]} 3. Nc3 {[%clk 0:03:00]}  d5 {[%clk 0:03:00]} 4. e5 {[%clk 0:02:59]}  Ne4 {[%clk 0:03:00]} 5. Nxe4 {[%clk 0:02:54]}  dxe4 {[%clk 0:03:00]} 6. Be3 {[%clk 0:02:53]}  Bg7 {[%clk 0:03:00]} 7. Ne2 {[%clk 0:02:53]}  c5 {[%clk 0:03:00]} 8. Nc3 {[%clk 0:02:51]}  cxd4 {[%clk 0:02:55]} 9. Qxd4 {[%clk 0:02:52]}  Qxd4 {[%clk 0:02:52]} 10. Bxd4 {[%clk 0:02:51]}  O-O {[%clk 0:02:53]} 11. Nxe4 {[%clk 0:02:50]}  Nc6 {[%clk 0:02:53]} 12. Bc3 {[%clk 0:02:48]}  Bf5 {[%clk 0:02:48]} 13. f3 {[%clk 0:02:38]}  Bxe4 {[%clk 0:02:46]} 14. fxe4 {[%clk 0:02:38]}  Bxe5 {[%clk 0:02:47]} 15. Bxe5 {[%clk 0:02:38]}  Nxe5 {[%clk 0:02:48]} 16. O-O-O {[%clk 0:02:38]}  Rfd8 {[%clk 0:02:48]} 17. Be2 {[%clk 0:02:38]}  Kg7 {[%clk 0:02:42]} 18. Rd5 {[%clk 0:02:25]}  Nc6 {[%clk 0:02:36]} 19. Rhd1 {[%clk 0:02:24]}  Rdc8 {[%clk 0:02:25]} 20. a3 {[%clk 0:02:20]}  Rc7 {[%clk 0:02:18]} 21. b3 {[%clk 0:02:00]}  Rac8 {[%clk 0:02:18]} 22. c4 {[%clk 0:01:58]}  e6 {[%clk 0:02:17]} 23. Rd7 {[%clk 0:01:58]}  Ne5 {[%clk 0:02:06]} 24. Rxc7 {[%clk 0:01:58]}  Rxc7 {[%clk 0:02:07]} 25. Kb2 {[%clk 0:01:58]}  Kf6 {[%clk 0:02:06]} 26. Kc3 {[%clk 0:01:54]}  Ke7 {[%clk 0:02:06]} 27. Rd4 {[%clk 0:01:44]}  b5 {[%clk 0:02:03]} 28. Rd2 {[%clk 0:01:41]}  bxc4 {[%clk 0:02:02]} 29. bxc4 {[%clk 0:01:42]}  Nd7 {[%clk 0:02:01]} 30. Rb2 {[%clk 0:01:37]}  Nc5 {[%clk 0:02:00]} 31. Bd3 {[%clk 0:01:35]}  Na4+ {[%clk 0:02:00]} 32. Kb3 {[%clk 0:01:33]}  Nxb2 {[%clk 0:01:59]} 33. Kxb2 {[%clk 0:01:34]}  Kd6 {[%clk 0:01:59]} 34. Kc3 {[%clk 0:01:34]}  Kc5 {[%clk 0:02:00]} 35. e5 {[%clk 0:01:34]}  Rd7 {[%clk 0:02:00]} 36. Bc2 {[%clk 0:01:31]}  Rd4 {[%clk 0:02:00]} 0-1

[Event "January 9 Late 2024"]
[Site "https://www.chess.com"]
[Date "2024.01.09"]
[Round "4"]
[White "Pakleza, Zbigniew"]
[Black "Kochiev, Ivan"]
[Result "1/2-1/2"]
[Board "49"]
[TimeControl "180+1"]
[WhiteFideId "1119290"]
[BlackFideId "2917890"]
[WhiteElo "2873"]
[BlackElo "2596"]
[WhiteTeam "POL"]
[BlackTeam "BUL"]
[WhiteClock "0:00:04"]
[BlackClock "0:00:10"]

1. d4 {[%clk 0:03:00]}  Nf6 {[%clk 0:02:59]} 2. Nf3 {[%clk 0:03:00]}  e6 {[%clk 0:03:00]} 3. Bf4 {[%clk 0:03:01]}  c5 {[%clk 0:03:00]} 4. c3 {[%clk 0:03:01]}  d5 {[%clk 0:03:00]} 5. e3 {[%clk 0:03:00]}  Bd6 {[%clk 0:03:00]} 6. Bg3 {[%clk 0:03:01]}  Qc7 {[%clk 0:03:01]} 7. Nbd2 {[%clk 0:03:01]}  Nbd7 {[%clk 0:03:01]} 8. Be2 {[%clk 0:03:02]}  O-O {[%clk 0:03:02]} 9. c4 {[%clk 0:03:02]}  Bxg3 {[%clk 0:02:49]} 10. hxg3 {[%clk 0:03:02]}  e5 {[%clk 0:02:50]} 11. dxe5 {[%clk 0:02:02]}  Nxe5 {[%clk 0:02:48]} 12. cxd5 {[%clk 0:01:58]}  Nxd5 {[%clk 0:02:45]} 13. Qc2 {[%clk 0:01:28]}  Nf6 {[%clk 0:02:32]} 14. Qc3 {[%clk 0:01:07]}  Nxf3+ {[%clk 0:02:24]} 15. Bxf3 {[%clk 0:01:08]}  Be6 {[%clk 0:02:25]} 16. O-O {[%clk 0:01:04]}  Rac8 {[%clk 0:02:07]} 17. e4 {[%clk 0:00:50]}  Rfd8 {[%clk 0:02:04]} 18. Rfe1 {[%clk 0:00:45]}  Rd4 {[%clk 0:01:46]} 19. Nb3 {[%clk 0:00:42]}  Bxb3 {[%clk 0:01:44]} 20. Qxb3 {[%clk 0:00:43]}  Nd7 {[%clk 0:01:38]} 21. e5 {[%clk 0:00:24]}  Nxe5 {[%clk 0:01:36]} 22. Qxb7 {[%clk 0:00:24]}  Nxf3+ {[%clk 0:01:30]} 23. Qxf3 {[%clk 0:00:25]}  g6 {[%clk 0:01:30]} 24. Rac1 {[%clk 0:00:20]}  Rd2 {[%clk 0:01:23]} 25. Qf6 {[%clk 0:00:18]}  Qb6 {[%clk 0:01:14]} 26. Qxb6 {[%clk 0:00:06]}  axb6 {[%clk 0:01:15]} 27. Rb1 {[%clk 0:00:06]}  Rcd8 {[%clk 0:01:07]} 28. a3 {[%clk 0:00:03]}  Rc2 {[%clk 0:00:55]} 29. Rec1 {[%clk 0:00:03]}  Re2 {[%clk 0:00:40]} 30. Re1 {[%clk 0:00:03]}  Rxe1+ {[%clk 0:00:41]} 31. Rxe1 {[%clk 0:00:04]}  Rd2 {[%clk 0:00:41]} 32. Rb1 {[%clk 0:00:04]}  c4 {[%clk 0:00:40]} 33. a4 {[%clk 0:00:04]}  Kf8 {[%clk 0:00:33]} 34. Rc1 {[%clk 0:00:04]}  Rxb2 {[%clk 0:00:18]} 35. Rxc4 {[%clk 0:00:04]}  Kg7 {[%clk 0:00:16]} 36. g4 {[%clk 0:00:04]}  b5 {[%clk 0:00:14]} 37. axb5 {[%clk 0:00:04]}  Rxb5 {[%clk 0:00:10]} 38. g3 {[%clk 0:00:04]} 1/2-1/2

[Event "January 9 Late 2024"]
[Site "https://www.chess.com"]
[Date "2024.01.09"]
[Round "4"]
[White "Siniauski, Artsiom"]
[Black "Bernadskiy, Vitaliy"]
[Result "0-1"]
[Board "50"]
[TimeControl "180+1"]
[WhiteFideId "13512269"]
[BlackFideId "14100371"]
[WhiteElo "2595"]
[BlackElo "2868"]
[WhiteTeam "FID"]
[BlackTeam "UKR"]
[WhiteClock "0:00:02"]
[BlackClock "0:01:50"]

1. e4 {[%clk 0:02:56]}  a6 {[%clk 0:03:00]} 2. d4 {[%clk 0:02:54]}  c6 {[%clk 0:03:01]} 3. Nc3 {[%clk 0:02:54]}  d5 {[%clk 0:03:01]} 4. Nf3 {[%clk 0:02:54]}  Bg4 {[%clk 0:03:01]} 5. h3 {[%clk 0:02:53]}  Bh5 {[%clk 0:03:01]} 6. Be2 {[%clk 0:02:51]}  e6 {[%clk 0:03:00]} 7. O-O {[%clk 0:02:51]}  Nf6 {[%clk 0:02:59]} 8. e5 {[%clk 0:02:50]}  Nfd7 {[%clk 0:02:59]} 9. Be3 {[%clk 0:02:40]}  Be7 {[%clk 0:02:58]} 10. Nh2 {[%clk 0:02:40]}  Bg6 {[%clk 0:02:58]} 11. f4 {[%clk 0:02:38]}  c5 {[%clk 0:02:57]} 12. Nf3 {[%clk 0:02:33]}  Nc6 {[%clk 0:02:35]} 13. g4 {[%clk 0:02:27]}  O-O {[%clk 0:02:26]} 14. Qe1 {[%clk 0:02:13]}  Nb4 {[%clk 0:02:20]} 15. Qf2 {[%clk 0:01:34]}  Nxc2 {[%clk 0:02:17]} 16. dxc5 {[%clk 0:01:31]}  Nxe3 {[%clk 0:02:07]} 17. Qxe3 {[%clk 0:01:28]}  Bxc5 {[%clk 0:02:07]} 18. Nd4 {[%clk 0:01:27]}  Nb8 {[%clk 0:02:05]} 19. Bf3 {[%clk 0:01:13]}  Nc6 {[%clk 0:02:05]} 20. Nce2 {[%clk 0:01:14]}  Qb6 {[%clk 0:02:05]} 21. Rad1 {[%clk 0:01:11]}  Rac8 {[%clk 0:02:05]} 22. Kh1 {[%clk 0:01:10]}  Nxd4 {[%clk 0:02:05]} 23. Nxd4 {[%clk 0:01:10]}  Qxb2 {[%clk 0:02:05]} 24. Rf2 {[%clk 0:00:28]}  Bxd4 {[%clk 0:02:00]} 25. Rxd4 {[%clk 0:00:26]}  Qc1+ {[%clk 0:02:01]} 26. Qxc1 {[%clk 0:00:25]}  Rxc1+ {[%clk 0:02:01]} 27. Kg2 {[%clk 0:00:26]}  Rfc8 {[%clk 0:02:01]} 28. Rb4 {[%clk 0:00:24]}  b5 {[%clk 0:02:00]} 29. a4 {[%clk 0:00:24]}  R1c4 {[%clk 0:01:59]} 30. Rxc4 {[%clk 0:00:19]}  bxc4 {[%clk 0:01:59]} 31. f5 {[%clk 0:00:16]}  exf5 {[%clk 0:01:59]} 32. Bxd5 {[%clk 0:00:02]}  c3 {[%clk 0:01:50]} 0-1

[Event "January 9 Late 2024"]
[Site "https://www.chess.com"]
[Date "2024.01.09"]
[Round "4"]
[White "Banerjee, Supratit"]
[Black "Schroeder, Jan-Christian"]
[Result "1/2-1/2"]
[Board "55"]
[TimeControl "180+1"]
[WhiteFideId "2410079"]
[BlackFideId "24662259"]
[WhiteElo "2579"]
[BlackElo "2842"]
[WhiteTeam "SCO"]
[BlackTeam "GER"]
[WhiteClock "0:00:40"]
[BlackClock "0:00:21"]

1. e4 {[%clk 0:03:00]}  c5 {[%clk 0:02:59]} 2. c3 {[%clk 0:03:00]}  Nf6 {[%clk 0:02:59]} 3. e5 {[%clk 0:03:00]}  Nd5 {[%clk 0:02:59]} 4. d4 {[%clk 0:03:00]}  d6 {[%clk 0:02:55]} 5. Nf3 {[%clk 0:03:00]}  cxd4 {[%clk 0:02:54]} 6. cxd4 {[%clk 0:03:00]}  Nc6 {[%clk 0:02:54]} 7. Bc4 {[%clk 0:02:59]}  dxe5 {[%clk 0:02:50]} 8. dxe5 {[%clk 0:02:59]}  Ndb4 {[%clk 0:02:50]} 9. Qxd8+ {[%clk 0:02:56]}  Nxd8 {[%clk 0:02:50]} 10. Na3 {[%clk 0:02:53]}  g6 {[%clk 0:02:44]} 11. Bd2 {[%clk 0:02:53]}  Ndc6 {[%clk 0:02:33]} 12. O-O {[%clk 0:02:51]}  a6 {[%clk 0:02:33]} 13. Rac1 {[%clk 0:02:49]}  Bg7 {[%clk 0:02:29]} 14. Rfe1 {[%clk 0:02:42]}  Bf5 {[%clk 0:02:26]} 15. Ng5 {[%clk 0:02:34]}  O-O {[%clk 0:02:15]} 16. h3 {[%clk 0:02:14]}  h6 {[%clk 0:02:05]} 17. Nf3 {[%clk 0:02:13]}  Rfd8 {[%clk 0:02:01]} 18. Bc3 {[%clk 0:02:10]}  Rac8 {[%clk 0:01:45]} 19. e6 {[%clk 0:02:06]}  f6 {[%clk 0:01:44]} 20. g4 {[%clk 0:01:49]}  Bd3 {[%clk 0:01:38]} 21. Bb3 {[%clk 0:01:49]}  Nd5 {[%clk 0:01:29]} 22. Bd2 {[%clk 0:01:42]}  b5 {[%clk 0:01:14]} 23. Nc2 {[%clk 0:01:36]}  f5 {[%clk 0:01:13]} 24. Bxd5 {[%clk 0:01:22]}  Rxd5 {[%clk 0:01:12]} 25. Nb4 {[%clk 0:01:22]}  Rd6 {[%clk 0:00:13]} 26. Bf4 {[%clk 0:01:20]}  Bxb2 {[%clk 0:00:13]} 27. Bxd6 {[%clk 0:01:19]}  Bxc1 {[%clk 0:00:12]} 28. Rxc1 {[%clk 0:01:18]}  Bc4 {[%clk 0:00:11]} 29. Nxc6 {[%clk 0:01:15]}  Rxc6 {[%clk 0:00:12]} 30. Bxe7 {[%clk 0:01:13]}  Rxe6 {[%clk 0:00:13]} 31. Bb4 {[%clk 0:01:12]}  fxg4 {[%clk 0:00:12]} 32. hxg4 {[%clk 0:01:12]}  Re2 {[%clk 0:00:13]} 33. a3 {[%clk 0:01:10]}  Bd5 {[%clk 0:00:11]} 34. Rc8+ {[%clk 0:01:09]}  Kf7 {[%clk 0:00:09]} 35. Rc7+ {[%clk 0:01:07]}  Ke8 {[%clk 0:00:07]} 36. Nd4 {[%clk 0:01:05]}  Re4 {[%clk 0:00:07]} 37. Nc2 {[%clk 0:00:54]}  Rxg4+ {[%clk 0:00:07]} 38. Kf1 {[%clk 0:00:53]}  Rc4 {[%clk 0:00:05]} 39. Rxc4 {[%clk 0:00:53]}  Bxc4+ {[%clk 0:00:06]} 40. Kg2 {[%clk 0:00:53]}  Kf7 {[%clk 0:00:04]} 41. Kg3 {[%clk 0:00:53]}  g5 {[%clk 0:00:05]} 42. Nd4 {[%clk 0:00:52]}  Kg6 {[%clk 0:00:05]} 43. f4 {[%clk 0:00:51]}  gxf4+ {[%clk 0:00:05]} 44. Kxf4 {[%clk 0:00:51]}  Bd5 {[%clk 0:00:05]} 45. Nf5 {[%clk 0:00:50]}  Bf7 {[%clk 0:00:04]} 46. Ne7+ {[%clk 0:00:47]}  Kf6 {[%clk 0:00:04]} 47. Nc8 {[%clk 0:00:46]}  Ke6 {[%clk 0:00:03]} 48. Nd6 {[%clk 0:00:46]}  Bg6 {[%clk 0:00:02]} 49. Nb7 {[%clk 0:00:46]}  Kd5 {[%clk 0:00:03]} 50. Nc5 {[%clk 0:00:46]}  a5 {[%clk 0:00:03]} 51. Bxa5 {[%clk 0:00:39]}  Kxc5 {[%clk 0:00:04]} 52. Bb4+ {[%clk 0:00:39]}  Kc4 {[%clk 0:00:05]} 53. Bf8 {[%clk 0:00:39]}  h5 {[%clk 0:00:05]} 54. Kg5 {[%clk 0:00:40]}  Be8 {[%clk 0:00:06]} 55. Bb4 {[%clk 0:00:40]}  Kb3 {[%clk 0:00:07]} 56. Kh4 {[%clk 0:00:40]}  Kc2 {[%clk 0:00:07]} 57. Bf8 {[%clk 0:00:40]}  Kd3 {[%clk 0:00:08]} 58. Be7 {[%clk 0:00:40]}  Ke4 {[%clk 0:00:09]} 59. Bb4 {[%clk 0:00:40]}  Kf3 {[%clk 0:00:10]} 60. Bf8 {[%clk 0:00:41]}  Kf4 {[%clk 0:00:10]} 61. Bb4 {[%clk 0:00:41]}  Kf5 {[%clk 0:00:11]} 62. Bf8 {[%clk 0:00:41]}  Ke6 {[%clk 0:00:11]} 63. Bb4 {[%clk 0:00:41]}  Kd5 {[%clk 0:00:12]} 64. Bf8 {[%clk 0:00:41]}  Kc4 {[%clk 0:00:13]} 65. Bb4 {[%clk 0:00:41]}  Kb3 {[%clk 0:00:13]} 66. Be7 {[%clk 0:00:41]}  Ka4 {[%clk 0:00:13]} 67. Bb4 {[%clk 0:00:41]}  Kb3 {[%clk 0:00:14]} 68. Kg3 {[%clk 0:00:41]}  Ka4 {[%clk 0:00:15]} 69. Kf4 {[%clk 0:00:41]}  Kb3 {[%clk 0:00:16]} 70. Ke3 {[%clk 0:00:41]}  h4 {[%clk 0:00:16]} 71. Kf4 {[%clk 0:00:39]}  h3 {[%clk 0:00:17]} 72. Kg3 {[%clk 0:00:40]}  Bd7 {[%clk 0:00:18]} 73. Kh2 {[%clk 0:00:40]}  Ka4 {[%clk 0:00:18]} 74. Bd6 {[%clk 0:00:40]}  Kb3 {[%clk 0:00:19]} 75. Bb4 {[%clk 0:00:40]}  Ka4 {[%clk 0:00:20]} 76. Be7 {[%clk 0:00:40]}  Kb3 {[%clk 0:00:21]} 77. Bb4 {[%clk 0:00:40]} 1/2-1/2

[Event "January 9 Late 2024"]
[Site "https://www.chess.com"]
[Date "2024.01.09"]
[Round "4"]
[White "Pichot, Alan"]
[Black "Tulchynskyi, Feliks"]
[Result "1-0"]
[Board "57"]
[TimeControl "180+1"]
[WhiteFideId "110973"]
[BlackFideId "34127895"]
[WhiteElo "2841"]
[BlackElo "2574"]
[WhiteTeam "ESP"]
[BlackTeam "UKR"]
[WhiteClock "0:00:06"]
[BlackClock "0:00:09"]

1. d4 {[%clk 0:03:00]}  Nf6 {[%clk 0:02:56]} 2. Nf3 {[%clk 0:03:00]}  e6 {[%clk 0:02:54]} 3. Bf4 {[%clk 0:03:00]}  d5 {[%clk 0:02:52]} 4. e3 {[%clk 0:03:00]}  Bd6 {[%clk 0:02:52]} 5. Ne5 {[%clk 0:03:00]}  Nfd7 {[%clk 0:02:51]} 6. Qg4 {[%clk 0:02:51]}  Nxe5 {[%clk 0:02:43]} 7. dxe5 {[%clk 0:02:51]}  Bb4+ {[%clk 0:02:43]} 8. c3 {[%clk 0:02:50]}  Bf8 {[%clk 0:02:42]} 9. Nd2 {[%clk 0:02:49]}  h5 {[%clk 0:02:41]} 10. Qg3 {[%clk 0:02:48]}  Nc6 {[%clk 0:02:36]} 11. h4 {[%clk 0:02:46]}  Ne7 {[%clk 0:02:36]} 12. Bd3 {[%clk 0:02:46]}  Nf5 {[%clk 0:02:35]} 13. Bxf5 {[%clk 0:02:23]}  exf5 {[%clk 0:02:36]} 14. e6 {[%clk 0:02:20]}  Bxe6 {[%clk 0:02:30]} 15. Bxc7 {[%clk 0:02:20]}  Qd7 {[%clk 0:02:28]} 16. Nf3 {[%clk 0:02:17]}  Rc8 {[%clk 0:02:21]} 17. Bf4 {[%clk 0:02:15]}  f6 {[%clk 0:02:20]} 18. Nd4 {[%clk 0:02:14]}  Kf7 {[%clk 0:02:16]} 19. O-O {[%clk 0:02:13]}  Bc5 {[%clk 0:02:12]} 20. Rad1 {[%clk 0:02:12]}  Rhe8 {[%clk 0:02:01]} 21. Qf3 {[%clk 0:02:11]}  Bxd4 {[%clk 0:01:52]} 22. Qxh5+ {[%clk 0:02:10]}  Kg8 {[%clk 0:01:52]} 23. Rxd4 {[%clk 0:02:09]}  Rc4 {[%clk 0:01:52]} 24. Rfd1 {[%clk 0:02:01]}  Rec8 {[%clk 0:01:51]} 25. Qg6 {[%clk 0:01:55]}  Rxd4 {[%clk 0:01:44]} 26. Rxd4 {[%clk 0:01:54]}  Rc4 {[%clk 0:01:43]} 27. Qg3 {[%clk 0:01:47]}  Rxd4 {[%clk 0:01:43]} 28. exd4 {[%clk 0:01:47]}  Bf7 {[%clk 0:01:39]} 29. b3 {[%clk 0:01:35]}  Bh5 {[%clk 0:01:34]} 30. Qd3 {[%clk 0:01:33]}  a6 {[%clk 0:01:31]} 31. f3 {[%clk 0:01:32]}  Be8 {[%clk 0:01:26]} 32. Kf2 {[%clk 0:01:32]}  Qe6 {[%clk 0:01:25]} 33. c4 {[%clk 0:01:20]}  Bc6 {[%clk 0:01:23]} 34. c5 {[%clk 0:01:11]}  Bb5 {[%clk 0:01:15]} 35. Qd2 {[%clk 0:01:11]}  Kf7 {[%clk 0:01:13]} 36. a4 {[%clk 0:01:12]}  Bc6 {[%clk 0:01:08]} 37. Qc2 {[%clk 0:01:11]}  g6 {[%clk 0:01:06]} 38. Qd3 {[%clk 0:01:05]}  Qe8 {[%clk 0:01:01]} 39. Qd2 {[%clk 0:01:05]}  Qh8 {[%clk 0:00:58]} 40. Bg3 {[%clk 0:01:05]}  Qe8 {[%clk 0:00:55]} 41. Qf4 {[%clk 0:01:04]}  Qd7 {[%clk 0:00:54]} 42. Qh6 {[%clk 0:01:03]}  Qe8 {[%clk 0:00:50]} 43. Qh7+ {[%clk 0:00:51]}  Ke6 {[%clk 0:00:50]} 44. Qc7 {[%clk 0:00:37]}  Qe7 {[%clk 0:00:43]} 45. Qc8+ {[%clk 0:00:37]}  Qd7 {[%clk 0:00:42]} 46. Qf8 {[%clk 0:00:37]}  Qe7 {[%clk 0:00:39]} 47. Qg8+ {[%clk 0:00:37]}  Qf7 {[%clk 0:00:38]} 48. Qb8 {[%clk 0:00:36]}  Qd7 {[%clk 0:00:36]} 49. Bf4 {[%clk 0:00:36]}  Kf7 {[%clk 0:00:35]} 50. Kg3 {[%clk 0:00:32]}  Kg7 {[%clk 0:00:34]} 51. Bd6 {[%clk 0:00:30]}  Qe8 {[%clk 0:00:34]} 52. Qc7+ {[%clk 0:00:28]}  Qd7 {[%clk 0:00:34]} 53. Qa5 {[%clk 0:00:27]}  Qe6 {[%clk 0:00:30]} 54. Qd2 {[%clk 0:00:27]}  Kh7 {[%clk 0:00:27]} 55. Kh2 {[%clk 0:00:23]}  Kg7 {[%clk 0:00:27]} 56. Qf2 {[%clk 0:00:23]}  Kf7 {[%clk 0:00:25]} 57. Bf4 {[%clk 0:00:22]}  Kg7 {[%clk 0:00:25]} 58. Qg3 {[%clk 0:00:21]}  Kf7 {[%clk 0:00:26]} 59. Bd2 {[%clk 0:00:17]}  Qe2 {[%clk 0:00:23]} 60. Qc7+ {[%clk 0:00:17]}  Qe7 {[%clk 0:00:23]} 61. Qc8 {[%clk 0:00:16]}  Qe8 {[%clk 0:00:23]} 62. Qc7+ {[%clk 0:00:16]}  Qe7 {[%clk 0:00:24]} 63. Qb8 {[%clk 0:00:16]}  Qe8 {[%clk 0:00:24]} 64. Qf4 {[%clk 0:00:16]}  Qe2 {[%clk 0:00:23]} 65. Qh6 {[%clk 0:00:16]}  Qe8 {[%clk 0:00:20]} 66. h5 {[%clk 0:00:13]}  gxh5 {[%clk 0:00:19]} 67. Qxh5+ {[%clk 0:00:13]}  Ke6 {[%clk 0:00:20]} 68. Qh7 {[%clk 0:00:13]}  Qf7 {[%clk 0:00:19]} 69. Qh8 {[%clk 0:00:13]}  Qe8 {[%clk 0:00:20]} 70. Qh4 {[%clk 0:00:10]}  Qf7 {[%clk 0:00:20]} 71. Bf4 {[%clk 0:00:10]}  Qg7 {[%clk 0:00:19]} 72. Kg1 {[%clk 0:00:10]}  Kf7 {[%clk 0:00:18]} 73. Kf2 {[%clk 0:00:08]}  Kg6 {[%clk 0:00:18]} 74. Ke2 {[%clk 0:00:06]}  Qe7+ {[%clk 0:00:18]} 75. Kd2 {[%clk 0:00:07]}  Qh7 {[%clk 0:00:18]} 76. Qg3+ {[%clk 0:00:07]}  Kf7 {[%clk 0:00:18]} 77. Qh3 {[%clk 0:00:03]}  Qxh3 {[%clk 0:00:18]} 78. gxh3 {[%clk 0:00:04]}  Kg6 {[%clk 0:00:18]} 79. Kc3 {[%clk 0:00:03]}  Kh5 {[%clk 0:00:18]} 80. Bg3 {[%clk 0:00:03]}  f4 {[%clk 0:00:17]} 81. Bxf4 {[%clk 0:00:03]}  Kh4 {[%clk 0:00:17]} 82. Kb4 {[%clk 0:00:04]}  Kxh3 {[%clk 0:00:16]} 83. Bd6 {[%clk 0:00:04]}  Kg2 {[%clk 0:00:16]} 84. f4 {[%clk 0:00:05]}  Kf3 {[%clk 0:00:16]} 85. Be7 {[%clk 0:00:04]}  Kxf4 {[%clk 0:00:14]} 86. Bxf6 {[%clk 0:00:04]}  Kf5 {[%clk 0:00:14]} 87. Be5 {[%clk 0:00:03]}  Ke6 {[%clk 0:00:15]} 88. Ka5 {[%clk 0:00:03]}  Kd7 {[%clk 0:00:15]} 89. b4 {[%clk 0:00:04]}  Kc8 {[%clk 0:00:14]} 90. b5 {[%clk 0:00:04]}  axb5 {[%clk 0:00:15]} 91. axb5 {[%clk 0:00:05]}  Be8 {[%clk 0:00:15]} 92. Kb6 {[%clk 0:00:05]}  Bg6 {[%clk 0:00:14]} 93. Ka7 {[%clk 0:00:03]}  Be8 {[%clk 0:00:14]} 94. c6 {[%clk 0:00:03]}  Bxc6 {[%clk 0:00:08]} 95. bxc6 {[%clk 0:00:03]}  bxc6 {[%clk 0:00:09]} 96. Kb6 {[%clk 0:00:04]}  Kd7 {[%clk 0:00:10]} 97. Kc5 {[%clk 0:00:04]}  Ke6 {[%clk 0:00:09]} 98. Kxc6 {[%clk 0:00:05]}  Kf5 {[%clk 0:00:09]} 99. Kxd5 {[%clk 0:00:06]} 1-0